Cogmind - Beta 14 @@@ ROGUE MODE // 2025.03.19 @ 15:10:13 Player: Zoe Result: Destroyed by G-47 Trooper with Particle Gun Performance ------------- Evolutions (2) 1000 Regions Visited (5) 1000 Robots Destroyed (78) 390 Value Destroyed (3880) 3880 Prototype IDs (0) 0 Alien Tech Used (0) 0 Bonus (1589) 1589 TOTAL SCORE: 7859 Bonus ------- Triggered High Security 500 High Alert Combat Kills 798 Follower Combat Kills 202 Entered Garrisons 200 Friendly Fire -111 Cogmind --------- Core Integrity 0/550 Matter 137/300 Energy 265/265 System Corruption 4% Temperature Cool (90) Movement Treading (157) Location -8/Materials Parts ------- > --- POWER (1) -------- Reinforced Ion Engine > --- PROPULSION (4) --- Armored Treads Advanced Treads Aluminum Leg Aluminum Leg > --- UTILITY (4) ------ Improved Heat Sink Improved Light Armor Plating System Shield > --- WEAPON (2) ------- Advanced Assault Cannon Advanced Assault Cannon > --- INVENTORY (5) ---- Light Nuclear Core Aluminum Leg Light Armor Plating Light Armor Plating Shock Rifle Peak State ------------ > --- POWER ------------ Reinforced Ion Engine > --- PROPULSION ------- Aluminum Leg Aluminum Leg Carbon-fiber Leg Carbon-fiber Leg > --- UTILITY ---------- Improved Heat Sink Medium Reactive Plating Hacking Suite Hacking Suite > --- WEAPON ----------- Advanced Assault Cannon Advanced Assault Cannon > --- INVENTORY -------- Improved Ion Engine Improved Heat Sink Light Armor Plating Advanced Assault Cannon [Rating: 32] Favorites ----------- Power Reinforced Ion Engine Engine Reinforced Ion Engine Power Core Light Nuclear Core Propulsion Aluminum Leg Treads Advanced Treads Leg Aluminum Leg Utility Hacking Suite Device Improved Heat Sink Storage Small Storage Unit Hackware Hacking Suite Protection Light Armor Plating Weapon Advanced Assault Cannon Energy Gun Small Laser Energy Cannon Particle Cannon Ballistic Cannon Advanced Assault Cannon Build | -11 -10 -9 -8 -8 -8 ------- Run | Yrd Mat Mat Mat Gar Mat Slots Evolved 4 | . . 2 2 . . Power . | . . . . . . Propulsion 2 | . . 1 1 . . Utility 2 | . . 1 1 . . Weapon . | . . . . . . Parts Attached 82 | 6 14 15 9 32 6 Power 11 | 1 3 2 2 3 . Engine 7 | 1 1 2 2 1 . Core 4 | . 2 . . 2 . Reactor . | . . . . . . Propulsion 32 | 2 6 7 2 12 3 Treads 3 | . . . . . 3 Leg 29 | 2 6 7 2 12 . Wheel . | . . . . . . Hover . | . . . . . . Flight . | . . . . . . Utility 22 | 1 2 3 3 11 2 Device 10 | . 2 2 2 4 . Storage 1 | 1 . . . . . Processor . | . . . . . . Hackware 3 | . . 1 1 . 1 Protection 8 | . . . . 7 1 Artifact . | . . . . . . Weapon 17 | 2 3 3 2 6 1 Energy Gun 7 | 2 3 1 . 1 . Energy Cannon 2 | . . 2 . . . Ballistic Gun . | . . . . . . Ballistic Cannon 8 | . . . 2 5 1 Launcher . | . . . . . . Special Weapon . | . . . . . . Impact Weapon . | . . . . . . Slashing Weapon . | . . . . . . Piercing Weapon . | . . . . . . Special Melee Weapon . | . . . . . . Unidentified Prototypes . | . . . . . . Parts Lost 34 | . 4 7 . 20 3 Power 3 | . 1 1 . 1 . Propulsion 15 | . 1 2 . 11 1 Utility 7 | . . 2 . 4 1 Weapon 9 | . 2 2 . 4 1 Highest Loss Streak 9 | . 4 4 . 9 2 To Critical Strikes . | . . . . . . Average Slot Usage (%) 89 | . 94 77 97 90 98 Engine 8 | . 4 10 9 8 9 Core 1 | . 9 . . . . Leg 30 | . 28 30 35 29 29 Device 6 | . 9 5 9 5 9 Storage 3 | . 14 11 9 . . Hackware 12 | . . 2 16 15 15 Protection 8 | . . . . 12 10 Energy Gun 4 | . 27 12 . . . Energy Cannon 1 | . . 3 9 . . Ballistic Cannon 12 | . . . 8 17 18 Peak Build Rating 32 | 6 12 14 22 32 30 Average Rating 20 | 3 9 9 20 25 25 On Entrance 12 | . 6 12 14 22 23 Naked Turns . | . . . . . . Heaviest Build 43 | 11 15 17 25 43 29 Greatest Support 50 | 20 20 30 40 50 42 Greatest Overweight (x) 6 | . . . . 6 . Average Overweight (x) . | . . . . . . Largest Inventory Capacity 8 | 8 8 8 8 8 5 Average Capacity 6 | 6 8 8 8 5 5 Most Carried 8 | 2 6 8 8 8 5 Average Carried 4 | 1 4 5 7 4 4 Final Capacity 8 | 8 8 8 8 5 5 Final Carried 8 | 2 6 8 8 4 5 Class Distribution -------------------- 81% | Scavenger-Mutant 14% | Hacker-Mutant 4% | Mutant Dominant Class ---------------- Scavenger-Mutant | -10/Materials Scavenger-Mutant | -9/Materials Hacker-Mutant | -8/Materials Scavenger-Mutant | -8/Garrison Scavenger-Mutant | -8/Materials Resources | -11 -10 -9 -8 -8 -8 ----------- Run | Yrd Mat Mat Mat Gar Mat Matter Collected 2700 | 215 146 149 155 1946 89 Remotely . | . . . . . . Salvage Created 2424 | . 380 553 397 962 132 Parts 138 | . 18 39 22 52 7 Haulers Intercepted . | . . . . . . Recyclers Shooed 2 | . 1 1 . . . Parts Field Recycled . | . . . . . . Retrieved Matter . | . . . . . . Parts Self-Destructed . | . . . . . . Prevented . | . . . . . . Kills | -11 -10 -9 -8 -8 -8 ------- Run | Yrd Mat Mat Mat Gar Mat Combat Hostiles Destroyed 70 | . 9 14 8 35 4 Guns 22 | . 7 13 . 2 . Cannons 45 | . . 1 8 33 3 AOE 2 | . 1 . . . 1 Classes Destroyed 11 | . 2 5 1 2 1 Worker 2 | . . 2 . . . Builder 1 | . . . . . 1 Operator 3 | . . 2 . . 1 Watcher 2 | . 1 . . 1 . Swarmer 7 | . . 4 . 3 . Grunt 37 | . 9 5 2 20 1 Brawler 3 | . . 1 . 1 1 Sentry 16 | . . 4 5 5 2 Hunter 2 | . . . 1 1 . Programmer 4 | . . . . 4 . Butcher 1 | . . . . 1 . Best Kill Streak 5 | . 2 5 3 4 3 Combat Bots Only 4 | . 2 4 3 4 2 Max Kills in Single Turn 3 | . 1 1 1 1 3 Gunslinging . | . . . . . . Exploded 1 | . 1 . . . 1 Melee . | . . . . . . Uniques/NPCs Destroyed . | . . . . . . Combat | -11 -10 -9 -8 -8 -8 -------- Run | Yrd Mat Mat Mat Gar Mat Hostile Shots Fired 490 | . 83 90 29 263 25 Missed 124 | . 16 25 11 68 4 Damage Taken 5262 | . 866 844 273 2892 387 Core 948 | . 196 202 28 421 101 Absorbed by Shields . | . . . . . . Ignored by Resistances 70 | . . . . 70 . Regen/Repaired (Parts) 74 | . . . 74 . . Core Remaining (%) 56 | 100 21 49 . . . Volleys Fired 290 | . 38 57 17 164 14 Largest 2 | . 2 2 2 2 2 Hottest 136 | . 105 136 112 113 96 Shots Fired 530 | . 68 81 34 318 29 Gun 157 | . 68 77 . 12 . Cannon 373 | . . 4 34 306 29 Launcher . | . . . . . . Special . | . . . . . . Kinetic 330 | . . . 17 284 29 Thermal 191 | . 59 81 17 34 . Explosive . | . . . . . . Electromagnetic 9 | . 9 . . . . Robot Hit Streak 15 | . 11 15 11 11 4 Robot Miss Streak 5 | . 4 3 2 5 1 Penetration Max . | . . . . . . Secondary Targets 3 | . 1 2 . . . Max Gunslinging Chain 1 | . 1 1 . . . Shots Hit Robots 312 | . 51 56 25 162 18 Core Hits 123 | . 20 25 12 60 6 Critical Kills . | . . . . . . Critical Parts Destroyed . | . . . . . . Critical Strikes 12 | . . . . 11 1 Blast 12 | . . . . 11 1 Melee Attacks . | . . . . . . Impact . | . . . . . . Slashing . | . . . . . . Piercing . | . . . . . . Sneak Attacks . | . . . . . . Combat Hostiles . | . . . . . . Follow-up Attacks . | . . . . . . Damage Inflicted 7003 | . 677 818 554 4136 818 Guns 1471 | . 582 774 . 115 . Cannons 5120 | . . 41 548 4021 510 Explosions 403 | . 95 . . . 308 Melee . | . . . . . . Ramming 9 | . . 3 6 . . Kinetic 4460 | . . . 299 3651 510 Thermal 2459 | . 602 815 249 485 308 Explosive . | . . . . . . Electromagnetic 75 | . 75 . . . . Impact . | . . . . . . Slashing . | . . . . . . Piercing . | . . . . . . Highest Corruption 4 | . 4 1 . 4 4 Average Corruption 3 | . 3 1 . 3 4 Corruption Purged . | . . . . . . Corruption Blocked . | . . . . . . Effects 51 | . 8 8 . 32 3 Message Errors 14 | . 4 5 . 5 . Matter Fused 14 | . . . . 12 2 Heat Flow Errors 5 | . . . . 5 . Energy Discharges 5 | . . 1 . 4 . Parts Rejected 2 | . 1 1 . . . Data Loss (minor) 4 | . 1 1 . 2 . Data Loss (major) 1 | . . . . 1 . Misfires 3 | . 1 . . 1 1 Alerts 3 | . 1 . . 2 . Overload Shots . | . . . . . . Overflow Damage 204 | . 17 . 3 91 93 Projectiles 94 | . . . 3 91 . Explosions 110 | . 17 . . . 93 Melee . | . . . . . . Knockbacks 43 | . . . 3 38 2 Impact . | . . . . . . Kinetic 43 | . . . 3 38 2 Secondary . | . . . . . . Self-Inflicted Damage 111 | . 36 . . . 75 Shots 2 | . 1 . . . 1 Rammed . | . . . . . . Targets Rammed 5 | . 1 3 1 . . Kicked 5 | . 1 3 1 . . Crushed . | . . . . . . Highest Temperature 357 | . 309 191 84 357 81 Average Temperature 72 | . 137 60 30 68 21 Received Heat Transfer 2232 | . 438 282 144 1224 144 Effects 3 | . 1 . . 2 . Shutdowns 1 | . . . . 1 . Energy Bleed 1 | . . . . 1 . Interference 1 | . 1 . . . . Siege Activations . | . . . . . . Robots Corrupted . | . . . . . . Combat Hostiles . | . . . . . . Parts Fried . | . . . . . . Impact Corruptions . | . . . . . . Robots Melted 1 | . 1 . . . . Combat Hostiles 1 | . 1 . . . . Parts Melted 6 | . 3 3 . . . Heat Transferred 4630 | . 1287 1929 444 770 200 Parts Sabotaged . | . . . . . . Parts Stolen . | . . . . . . Parts Stripped . | . . . . . . Power Chain Reactions 1 | . 1 . . . . Alert | -11 -10 -9 -8 -8 -8 ------- Run | Yrd Mat Mat Mat Gar Mat Peak Influence 3465 | . 214 344 350 3465 1906 Initial 1688 | . . 38 100 165 1688 Average 1174 | . 91 190 242 1654 1760 Maximum Alert Level 5 | . 1 1 1 5 5 Low Security (%) 21 | 100 97 43 41 1 . Level 1 15 | . 2 56 58 4 . Level 2 8 | . . . . 13 . Level 3 12 | . . . . 18 . Level 4 8 | . . . . 13 . Level 5 33 | . . . . 47 97 High Security . | . . . . . 2 Max Security . | . . . . . . Squads Dispatched 10 | . 3 3 2 . 2 Investigation 6 | . 2 1 1 . 2 Extermination . | . . . . . . Reinforcement 4 | . 1 2 1 . . Assault . | . . . . . . Garrison . | . . . . . . Intercept . | . . . . . . Searches Triggered . | . . . . . . Construction Impeded . | . . . . . . Haulers Reinforced . | . . . . . . Active Scanning Responses . | . . . . . . Cargo Convoy Interrupts . | . . . . . . Stealth | -11 -10 -9 -8 -8 -8 --------- Run | Yrd Mat Mat Mat Gar Mat Distress Signals 9 | . 3 3 2 1 . Communications Jammed . | . . . . . . Distress Signals . | . . . . . . Times Spotted 132 | . 20 35 12 56 9 Peak Tracking Total 8 | . 5 7 3 8 3 Tactical Retreats 19 | . 1 4 1 13 . Traps | -11 -10 -9 -8 -8 -8 ------- Run | Yrd Mat Mat Mat Gar Mat Traps Triggered 16 | . 5 2 . 8 1 Indirectly . | . . . . . . Trap Hack Attempts . | . . . . . . Triggered . | . . . . . . Disarmed . | . . . . . . Reprogrammed . | . . . . . . Reused . | . . . . . . Traps Extracted . | . . . . . . Installed . | . . . . . . Triggered . | . . . . . . Machines | -11 -10 -9 -8 -8 -8 ---------- Run | Yrd Mat Mat Mat Gar Mat Machines Disabled 16 | . 1 . 1 11 3 Max in Single Turn 1 | . 1 . 1 1 1 Garrison Relay 6 | . . . . 6 . Machines Repaired . | . . . . . . Machines Dismantled . | . . . . . . Machines Sabotaged . | . . . . . . Overloaded Fab Kills . | . . . . . . Hacking | -11 -10 -9 -8 -8 -8 --------- Run | Yrd Mat Mat Mat Gar Mat Machines Accessed 20 | . 5 5 5 3 2 Terminals 16 | . 5 3 3 3 2 Fabricators . | . . . . . . Repair Stations 1 | . . . 1 . . Recycling Units . | . . . . . . Scanalyzers 2 | . . 2 . . . Garrison Access 1 | . . . 1 . . Total Hacks 48 | . 15 12 12 4 5 Successful 29 | . 5 8 11 2 3 Failed 19 | . 10 4 1 2 2 Catastrophic 1 | . . 1 . . . Database Lockouts . | . . . . . . Manual 30 | . 14 5 5 . 6 Terminals 40 | . 15 8 8 4 5 Fabricators . | . . . . . . Repair Stations 3 | . . . 3 . . Recycling Units . | . . . . . . Scanalyzers 4 | . . 4 . . . Garrison Access 1 | . . . 1 . . Terminal Hacks 13 | . 3 3 4 2 1 Record 1 | . . 1 . . . Robot Schematic 1 | . 1 . . . . Robot Analysis 1 | . 1 . . . . Open Door 1 | . . . . 1 . Branch Access Points 1 | . . . 1 . . Terminal Index 3 | . 1 . 1 . 1 Dispatch Records 1 | . . . 1 . . Investigation Status 1 | . . 1 . . . Recall Reinforcements 1 | . . . 1 . . Hauler Manifests 1 | . . 1 . . . Patrol Navigation 1 | . . . . 1 . Fabricator Hacks . | . . . . . . Repair Station Hacks 3 | . . . 3 . . Scan Component 2 | . . . 2 . . Repair 1 | . . . 1 . . Recycling Unit Hacks . | . . . . . . Scanalyzer 4 | . . 4 . . . Insert Component 2 | . . 2 . . . Analyze 2 | . . 2 . . . Garrison Access Hacks 1 | . . . 1 . . Unlock Access 1 | . . . 1 . . Unauthorized Hacks 8 | . 2 1 3 . 2 Terminals 8 | . 2 1 3 . 2 Assimilate 3 | . 1 . 1 . 1 Botnet 2 | . . . 1 . 1 Operators 3 | . 1 1 1 . . Fabricators . | . . . . . . Repair Stations . | . . . . . . Recycling Units . | . . . . . . Scanalyzers . | . . . . . . Garrison Access . | . . . . . . Data Cores Recovered . | . . . . . . Used . | . . . . . . Hacking Detections 12 | . 3 4 3 1 1 Full Trace Events 6 | . 3 . 1 1 1 Feedback Events . | . . . . . . Feedback Blocked . | . . . . . . Robot Schematics Acquired 1 | . 1 . . . . Robots Built . | . . . . . . Authchips . | . . . . . . Time . | . . . . . . Total Robot Build Rating . | . . . . . . Part Schematics Acquired 2 | . . 2 . . . Parts Built . | . . . . . . Authchips . | . . . . . . Time . | . . . . . . Total Part Build Rating . | . . . . . . Parts Repaired 1 | . . . 1 . . Time 26 | . . . 26 . . Parts Recycled . | . . . . . . Recycled Matter . | . . . . . . Retrieved Matter . | . . . . . . Retrieved Components . | . . . . . . Parts Scanalyzed 2 | . . 2 . . . Part Schematics Acquired 2 | . . 2 . . . Parts Damaged . | . . . . . . Bothacking | -11 -10 -9 -8 -8 -8 ------------ Run | Yrd Mat Mat Mat Gar Mat Used RIF Installer . | . . . . . . Robots Hacked . | . . . . . . Non-combat . | . . . . . . Combat . | . . . . . . Robot Hacks Applied . | . . . . . . Relay Couplers Released 20 | . . . . 20 . Machine Destruction 20 | . . . . 20 . Fabnet Peak Effective % . | . . . . . . Robots Rewired 3 | . . . . 3 . Allies Hacked . | . . . . . . Hacks Repelled . | . . . . . . Allies | -11 -10 -9 -8 -8 -8 -------- Run | Yrd Mat Mat Mat Gar Mat Total Allies 4 | . . . . 3 1 Largest Group 3 | . . . . 3 1 Highest-Rated Group 95 | . . . . 95 26 Highest-Rated Ally 39 | . . . . 39 26 Total Orders . | . . . . . . Ally Attacks 29 | . . . . 29 . Total Damage 629 | . . . . 629 . Kills 8 | . . . . 8 . Allies Corrupted . | . . . . . . Allies Melted . | . . . . . . Intel | -11 -10 -9 -8 -8 -8 ------- Run | Yrd Mat Mat Mat Gar Mat Robot Analysis Total 1 | . 1 . . . . Derelict Logs Recovered . | . . . . . . Drone Launches . | . . . . . . Drone Recoveries . | . . . . . . Exploration | -11 -10 -9 -8 -8 -8 ------------- Run | Yrd Mat Mat Mat Gar Mat Turns Passed 7189 | 68 726 1001 541 4599 254 Spaces Moved 4646 | 57 445 620 326 3040 158 Core 18 | 15 . . . 3 . Treads 14 | . . . . . 14 Legs 4614 | 42 445 620 326 3037 144 Wheels . | . . . . . . Hover . | . . . . . . Flight . | . . . . . . Fastest Speed 50 | 50 120 120 120 120 120 Average Speed 125 | 101 120 120 120 128 123 Slowest Speed 350 | 120 120 120 120 350 157 Overloaded Moves . | . . . . . . Propulsion Burnouts . | . . . . . . Robots Hopped . | . . . . . . Cave-ins Triggered . | . . . . . . Exploration Rate (%) 44 | 4 76 52 30 86 21 Regions Visited 5 Branch Regions . Pre-discovered Areas . | . . . . . . Known Exits Taken 1 | . . . 1 . . Unknown Exits Taken 3 | 1 1 1 . . . Scrap Searched . | . . . . . . Spaces Dug . | . . . . . . Terrain Destroyed 28 | . 5 . . . 23 Melee . | . . . . . . Projectile 6 | . . . . . 6 AOE 22 | . 5 . . . 17 Terrain Rammed . | . . . . . . Walls Destroyed . | . . . . . . Machines Disabled . | . . . . . . Actions | -11 -10 -9 -8 -8 -8 --------- Run | Yrd Mat Mat Mat Gar Mat Total 5459 | 64 565 791 445 3406 188 Wait 355 | . 63 91 78 113 10 Move 4641 | 56 444 619 325 3039 158 Hop . | . . . . . . Pick Up 24 | 2 2 5 6 9 . Fast Attach 34 | 6 4 5 2 16 1 Attach 17 | . 2 5 1 8 1 Detach . | . . . . . . Swap 32 | . 8 5 6 9 4 Drop 23 | . 3 1 9 10 . Fire 290 | . 38 57 17 164 14 Melee . | . . . . . . Ram . | . . . . . . Kick 5 | . 1 3 1 . . Crush . | . . . . . . Escape Stasis 25 | . . . . 25 . Rewire 13 | . . . . 13 . Trap . | . . . . . . Miscellaneous . | . . . . . . Route ------- -11/Scrapyard -10/Materials (discovered 3 exits: *Mat x3) -9/Materials (discovered 2 exits: *Mat / [*Min]) -8/Materials (discovered 3 exits: [*Fac] / Sto / Gar) -8/Garrison (discovered 3 exits: *Mat x3) -8/Materials History --------- Turn | Location | Event 10 | -11/Scrapyard | Discovered new exit (range 14) 69 | -11/Scrapyard | Entered Materials 301 | -10/Materials | Lost 4 parts (1p1n2w) 329 | -10/Materials | Discovered new exit (range 6) 340 | -10/Materials | Core integrity fell below 50% 579 | -10/Materials | Build established: Scavenger-Mutant 620 | -10/Materials | Discovered new exit (range 3) 777 | -10/Materials | Discovered new exit (range 16) 795 | -10/Materials | Entered another Materials area 795 | -9/Materials | Evolved 2 slots: Propulsion x1, Utility x1 1019 | -9/Materials | Discovered new exit (range 6) 1114 | -9/Materials | Lost 4 parts (1n2u1w) 1222 | -9/Materials | Lost 3 parts (1p1n1w) 1553 | -9/Materials | Core integrity fell below 50% 1777 | -9/Materials | Discovered new exit (range 9) 1796 | -9/Materials | Entered another Materials area 1796 | -8/Materials | Evolved 2 slots: Propulsion x1, Utility x1 1971 | -8/Materials | Discovered new exit (range 16) 2063 | -8/Materials | Repaired Aluminum Leg 2251 | -8/Materials | Identified exit to Storage 2328 | -8/Materials | Build established: Hacker-Mutant 2331 | -8/Materials | Identified exit to Garrison 2337 | -8/Materials | Entered Garrison 2427 | -8/Garrison | Triggered checkpoint 2581 | -8/Garrison | Lost 9 parts (1p4n2u2w) 2773 | -8/Garrison | Triggered checkpoint 2844 | -8/Garrison | Build established: Scavenger-Mutant 2932 | -8/Garrison | Discovered new exit (range 14) 3037 | -8/Garrison | Core integrity fell below 50% 3123 | -8/Garrison | Triggered checkpoint 3155 | -8/Garrison | Triggered checkpoint 3255 | -8/Garrison | Triggered checkpoint 3332 | -8/Garrison | Discovered new exit (range 14) 3426 | -8/Garrison | Triggered checkpoint 3547 | -8/Garrison | Discovered new exit (range 13) 3996 | -8/Garrison | Build established: Hacker-Mutant 4095 | -8/Garrison | Triggered checkpoint 4466 | -8/Garrison | Build established: Scavenger-Mutant 5240 | -8/Garrison | Garrison Relay disabled 5452 | -8/Garrison | Garrison Relay disabled 5463 | -8/Garrison | P-60 Hacker assimilated allied PH-EA4(l) 5464 | -8/Garrison | Garrison Relay disabled 5476 | -8/Garrison | Garrison Relay disabled 5496 | -8/Garrison | Core integrity fell below 20% 6070 | -8/Garrison | Garrison Relay disabled 6370 | -8/Garrison | Garrison Relay disabled 6936 | -8/Garrison | Entered Materials 7183 | -8/Materials | High security lockdown imminent 7190 | -8/Materials | Destroyed by G-47 Trooper with Particle Gun Last Messages --------------- 07106_ Acquired Adv. Treads. 07112_ K-01 Serf collects debris. 07153_ System corrupted: Matter fused (-10). 07165_ Recycling Unit disabled. 07175_ U-05 Engineer builds a Wall. 07177_ B-36 Bruiser destroyed. 07178_ U-05 Engineer builds a Wall. 07180_ Destroyed Welding Torch. 07180_ U-05 Engineer knocked back. 07183_ Fusion Modulator explodes. 07183_ G-47 Trooper knocked back. 07183_ Destroyed Aluminum Leg. 07183_ G-47 Trooper destroyed. 07183_ ALERT: High security lockdown imminent, T-100. 07183_ Destroyed Wheel. 07183_ Destroyed Lgt. Ion Engine. 07183_ U-05 Engineer destroyed. 07183_ Administrator 3a destroyed. 07185_ Hacking Suite destroyed. Map ----- +----------------------------------------------------+ | ???????# ???? | | ???????############ ####"T"#########???????? | | ?????????# # #??#####???????????????? | | ?????????# # #??????????????????????? | | ?????????# + #??????????????????????? | | ?????????# # ???????????????? | | ?????????# # ???????????? | | ?????????# # ????????????? | | ?????????# ! # ###########????????????? | | ?????????# # #??????????????????????? | | ?????????# # #??????????????????????? | | ?????????######+### #??????????????????????? | | ??????????????# #?# #??????????????????????? | | ??????????????# #?# #??????????????????????? | | ????########### ### u#??????????????????????? | | ????# """T""" #g #??????????????????????? | | ????# # #??????????????????????? | | ????# """"""" # u ###????????????????????? | | ????# %""""""%/g ;;####?????????????????? | | ????# """"""" ;% ??????????????????? | | ????# """"""" ; ???????????????????? | | ????# """"""" ; ??????????????????? | | ????# ; % ;;####?????????????????? | | ????########+#; %=!; #?########??????????? | | ????# = #; ! ; #??# #??????????? | | ????# """ ## @; #??# #??????????? | | ????# """ ## k ; #??# #??????????? | | ????# """ ## % ###### #??????????? | | ????# ## / # #??????????? | | ????# """ ## + #??????????? | | ????# """ ## #########+# #??????????? | | ????# """ ##k ## # #??????????? | | ????# ## ## # #??????????? | | ????#######+## % # # #??????????? | | ????????# [ # #! #??????????? | | ????????# *!! + # #??????????? | | ????#######+## # # % #??????????? | | ????# ###### ########??????????? | | ????# !] #????# #?????????????????? | | ????# ! #????# #?????????????????? | | ????# #????##########?????????????????? | | ????#! #???????????????????????????????? | | ????# """"" #???????????????????????????????? | | ????# """"" #???????????????????????????????? | | ????# """"" #???????????????????????????????? | | ????# #???????????????????????????????? | | ????##########???????????????????????????????? | | | | | | | +----------------------------------------------------+ Best States ------------- Heat Dissipation 53 Energy Generation 14 Energy Capacity 275 Matter Stores 300 Matter Capacity 300 Sight Range 16 Terrain Scan Density 10 Armor Coverage 600 Resistance: KI 30 Evasion (%) 55 Recoil Reduction 2 Offensive Hacking 20 Defensive Hacking 10 Item Schematics ----------------- Aluminum Leg | -9/Materials | Scanalyzed Imp. Ion Engine | -9/Materials | Scanalyzed Robot Schematics ------------------ G-34 Mercenary | -10/Materials | Hacked Fabricated ------------ Nothing Alien Tech Used ----------------- None Achievements -------------- None Challenges ------------ None Game ------ Seed AblativeMolecularNukerbomber Manual? 0 Play Time 00:57:39 Cumulative 66.1 hours Start 2025.03.19 @ 13:28:56 End 2025.03.19 @ 15:10:13 Sessions 1 Manual Loads 0 Difficulty Rogue Special Mode None Game No. 43 Rogue 43 Adventurer 0 Explorer 0 Win Type - Total 0 Types 0/0/0/0/0/0/0/0/0 Lore% 27 Gallery% 49 Achievement% 46 Wizard Run 0 Options --------- Layout 1 ASCII 0 Keyboard 1 Movement Numpad Keybinds 0 Fullscreen 1 Font 24/Smallcaps Map View 50x35 Zoom Use 0% Tactical HUD 1 Map Filters NONE Filters NONE Steam 1 RUN: db176dbd-bb40-4eed-85bb-2c614f3f8457